Cogmind - Beta 12 @@@ ROGUE MODE // 2023.04.29 @ 17:10:16 Player: Mr Goldstein Result: Destroyed by as-47917 with Assembled Rifle Performance ------------- Evolutions (0) 0 Regions Visited (2) 400 Robots Destroyed (4) 20 Value Destroyed (36) 36 Prototype IDs (0) 0 Alien Tech Used (0) 0 Bonus (0) 0 TOTAL SCORE: 456 Bonus ------- None Cogmind --------- Core Integrity 0/250 Matter 45/300 Energy 100/100 System Corruption 0% Temperature Cool (0) Movement Core (50) Location -10/Mines Parts ------- > --- POWER (1) -------- (None) > --- PROPULSION (2) --- (None) > --- UTILITY (2) ------ (None) > --- WEAPON (2) ------- (None) > --- INVENTORY (5) ---- Flight Unit Flight Unit Peak State ------------ > --- POWER ------------ (None) > --- PROPULSION ------- (None) > --- UTILITY ---------- (None) > --- WEAPON ----------- Grenade Launcher Grenade Launcher > --- INVENTORY -------- Flight Unit Flight Unit [Rating: 2] Favorites ----------- Power None Propulsion None Utility None Weapon Grenade Launcher Ballistic Gun Light Assault Rifle Launcher Grenade Launcher Build | -11 -10 -10 ------- Run | Jun Mat Min Slots Evolved . | . . . Power . | . . . Propulsion . | . . . Utility . | . . . Weapon . | . . . Parts Attached 4 | . 2 2 Power . | . . . Engine . | . . . Core . | . . . Reactor . | . . . Propulsion . | . . . Treads . | . . . Leg . | . . . Wheel . | . . . Hover . | . . . Flight . | . . . Utility . | . . . Device . | . . . Storage . | . . . Processor . | . . . Hackware . | . . . Protection . | . . . Artifact . | . . . Weapon 4 | . 2 2 Energy Gun . | . . . Energy Cannon . | . . . Ballistic Gun 1 | . 1 . Ballistic Cannon . | . . . Launcher 3 | . 1 2 Special Weapon . | . . . Impact Weapon . | . . . Slashing Weapon . | . . . Piercing Weapon . | . . . Special Melee Weapon . | . . . Unidentified Prototypes . | . . . Parts Lost 2 | . . 2 Power . | . . . Propulsion . | . . . Utility . | . . . Weapon 2 | . . 2 Highest Loss Streak 2 | . . 2 To Critical Strikes . | . . . Average Slot Usage (%) 4 | . 3 7 Ballistic Gun 2 | . 3 . Launcher 2 | . . 7 Naked Turns 95 | . 72 23 Heaviest Build 6 | . 1 6 Greatest Support 3 | 3 3 3 Greatest Overweight (x) 1 | . . 1 Average Overweight (x) . | . . . Largest Inventory Capacity 5 | 5 5 5 Average Capacity 5 | 5 5 5 Most Carried 4 | . 4 4 Average Carried 2 | . 2 2 Final Capacity 5 | 5 5 5 Final Carried 4 | . 4 2 Class Distribution -------------------- 100% | Mutant Dominant Class ---------------- Mutant | -10/Materials Mutant | -10/Mines Resources | -11 -10 -10 ----------- Run | Jun Mat Min Matter Collected 81 | 71 10 . Remotely . | . . . Salvage Created 122 | . 108 14 Parts 7 | . 7 . Haulers Intercepted . | . . . Recyclers Shooed . | . . . Parts Field Recycled . | . . . Retrieved Matter . | . . . Parts Self-Destructed . | . . . Prevented . | . . . Kills | -11 -10 -10 ------- Run | Jun Mat Min Combat Hostiles Destroyed 15 | . 3 12 AOE 15 | . 3 12 Classes Destroyed 3 | . 2 1 Recycler 1 | . 1 . Swarmer 3 | . 3 . Assembled 12 | . . 12 Best Kill Streak 12 | . 4 12 Combat Bots Only 12 | . 3 12 Max Kills in Single Turn 4 | . 3 4 Gunslinging . | . . . Exploded 4 | . 3 4 Melee . | . . . Uniques/NPCs Destroyed . | . . . Combat | -11 -10 -10 -------- Run | Jun Mat Min Damage Taken 380 | . 41 339 Core 259 | . 41 218 Absorbed by Shields . | . . . Core Remaining (%) 100 | 100 . . Volleys Fired 13 | . 7 6 Largest 2 | . 1 2 Hottest 60 | . 30 60 Shots Fired 16 | . 7 9 Gun 6 | . 6 . Cannon . | . . . Launcher 10 | . 1 9 Special . | . . . Kinetic 6 | . 6 . Thermal . | . . . Explosive 10 | . 1 9 Electromagnetic . | . . . Robot Hit Streak 6 | . 5 6 Robot Miss Streak . | . . . Penetration Max . | . . . Secondary Targets . | . . . Shots Hit Robots 6 | . 5 1 Core Hits 31 | . 5 26 Critical Kills . | . . . Critical Parts Destroyed . | . . . Critical Strikes . | . . . Melee Attacks . | . . . Impact . | . . . Slashing . | . . . Piercing . | . . . Sneak Attacks . | . . . Combat Hostiles . | . . . Follow-up Attacks . | . . . Damage Inflicted 890 | . 170 720 Guns 46 | . 46 . Cannons . | . . . Explosions 844 | . 124 720 Melee . | . . . Ramming . | . . . Kinetic 46 | . 46 . Thermal . | . . . Explosive 844 | . 124 720 Electromagnetic . | . . . Impact . | . . . Slashing . | . . . Piercing . | . . . Highest Corruption . | . . . Average Corruption . | . . . Corruption Purged . | . . . Corruption Blocked . | . . . Overload Shots . | . . . Overflow Damage 13 | . . 13 Projectiles . | . . . Explosions 13 | . . 13 Melee . | . . . Knockbacks . | . . . Impact . | . . . Kinetic . | . . . Secondary . | . . . Self-Inflicted Damage 38 | . . 38 Shots 1 | . . 1 Rammed . | . . . Targets Rammed . | . . . Kicked . | . . . Crushed . | . . . Highest Temperature . | . . . Average Temperature . | . . . Received Heat Transfer . | . . . Siege Activations . | . . . Robots Corrupted . | . . . Combat Hostiles . | . . . Parts Fried . | . . . Impact Corruptions . | . . . Robots Melted . | . . . Combat Hostiles . | . . . Parts Melted . | . . . Heat Transferred . | . . . Parts Sabotaged . | . . . Parts Stolen . | . . . Parts Stripped . | . . . Power Chain Reactions . | . . . Missiles Intercepted . | . . . Alert | -11 -10 -10 ------- Run | Jun Mat Min Peak Influence 98 | . 98 71 Initial 37 | . . 37 Average 42 | . 43 52 Maximum Alert Level . | . . . Low Security (%) 100 | 100 100 100 Level 1 . | . . . Level 2 . | . . . Level 3 . | . . . Level 4 . | . . . Level 5 . | . . . High Security . | . . . Max Security . | . . . Squads Dispatched . | . . . Investigation . | . . . Extermination . | . . . Reinforcement . | . . . Assault . | . . . Garrison . | . . . Intercept . | . . . Searches Triggered . | . . . Construction Impeded . | . . . Haulers Reinforced . | . . . Active Scanning Responses . | . . . Cargo Convoy Interrupts . | . . . Stealth | -11 -10 -10 --------- Run | Jun Mat Min Distress Signals 1 | . 1 . Communications Jammed . | . . . Distress Signals . | . . . Times Spotted 24 | . 4 20 Peak Tracking Total 17 | . 4 17 Tactical Retreats 1 | . . 1 Traps | -11 -10 -10 ------- Run | Jun Mat Min Traps Triggered . | . . . Indirectly . | . . . Trap Hack Attempts . | . . . Triggered . | . . . Disarmed . | . . . Reprogrammed . | . . . Reused . | . . . Traps Extracted . | . . . Installed . | . . . Triggered . | . . . Machines | -11 -10 -10 ---------- Run | Jun Mat Min Machines Disabled . | . . . Max in Single Turn . | . . . Machines Repaired . | . . . Machines Sabotaged . | . . . Overloaded Fab Kills . | . . . Hacking | -11 -10 -10 --------- Run | Jun Mat Min Machines Accessed . | . . . Terminals . | . . . Fabricators . | . . . Repair Stations . | . . . Recycling Units . | . . . Scanalyzers . | . . . Garrison Access . | . . . Total Hacks . | . . . Successful . | . . . Failed . | . . . Catastrophic . | . . . Database Lockouts . | . . . Manual . | . . . Terminals . | . . . Fabricators . | . . . Repair Stations . | . . . Recycling Units . | . . . Scanalyzers . | . . . Garrison Access . | . . . Terminal Hacks . | . . . Fabricator Hacks . | . . . Repair Station Hacks . | . . . Recycling Unit Hacks . | . . . Scanalyzer . | . . . Garrison Access Hacks . | . . . Unauthorized Hacks . | . . . Terminals . | . . . Fabricators . | . . . Repair Stations . | . . . Recycling Units . | . . . Scanalyzers . | . . . Garrison Access . | . . . Data Cores Recovered . | . . . Used . | . . . Hacking Detections . | . . . Full Trace Events . | . . . Feedback Events . | . . . Feedback Blocked . | . . . Robot Schematics Acquired . | . . . Robots Built . | . . . Authchips . | . . . Time . | . . . Total Robot Build Rating . | . . . Part Schematics Acquired . | . . . Parts Built . | . . . Authchips . | . . . Time . | . . . Total Part Build Rating . | . . . Parts Repaired . | . . . Time . | . . . Parts Recycled . | . . . Recycled Matter . | . . . Retrieved Matter . | . . . Retrieved Components . | . . . Parts Scanalyzed . | . . . Part Schematics Acquired . | . . . Parts Damaged . | . . . Bothacking | -11 -10 -10 ------------ Run | Jun Mat Min Used RIF Installer . | . . . Robots Hacked . | . . . Non-combat . | . . . Combat . | . . . Robot Hacks Applied . | . . . Relay Couplers Released . | . . . Fabnet Peak Effective % . | . . . Robots Rewired . | . . . Allies Hacked . | . . . Hacks Repelled . | . . . Allies | -11 -10 -10 -------- Run | Jun Mat Min Total Allies . | . . . Largest Group . | . . . Highest-Rated Group . | . . . Highest-Rated Ally . | . . . Total Orders . | . . . Ally Attacks . | . . . Total Damage . | . . . Kills . | . . . Allies Corrupted . | . . . Allies Melted . | . . . Intel | -11 -10 -10 ------- Run | Jun Mat Min Robot Analysis Total . | . . . Derelict Logs Recovered . | . . . Drone Launches . | . . . Drone Recoveries . | . . . Exploration | -11 -10 -10 ------------- Run | Jun Mat Min Turns Passed 141 | 11 91 39 Spaces Moved 203 | 22 140 41 Core 203 | 22 140 41 Treads . | . . . Legs . | . . . Wheels . | . . . Hover . | . . . Flight . | . . . Fastest Speed 50 | 50 50 50 Average Speed 50 | 50 50 51 Slowest Speed 100 | 50 50 100 Overloaded Moves . | . . . Propulsion Burnouts . | . . . Robots Hopped . | . . . Cave-ins Triggered . | . . . Exploration Rate (%) 18 | 2 35 19 Regions Visited 2 Branch Regions 1 Pre-discovered Areas . | . . . Known Exits Taken . | . . . Unknown Exits Taken 2 | 1 1 . Scrap Searched . | . . . Spaces Dug 8 | . 8 . Terrain Destroyed 41 | . 8 33 Melee . | . . . Projectile . | . . . AOE 41 | . 8 33 Terrain Rammed . | . . . Walls Destroyed . | . . . Machines Disabled . | . . . Actions | -11 -10 -10 --------- Run | Jun Mat Min Total 225 | 21 155 49 Wait . | . . . Move 201 | 21 139 41 Hop . | . . . Pick Up 5 | . 5 . Fast Attach . | . . . Attach 4 | . 2 2 Detach 1 | . 1 . Swap . | . . . Drop 1 | . 1 . Fire 13 | . 7 6 Melee . | . . . Ram . | . . . Kick . | . . . Crush . | . . . Escape Stasis . | . . . Rewire . | . . . Trap . | . . . Miscellaneous . | . . . Route ------- -11/Junkyard -10/Materials -10/Mines History --------- Turn | Location | Event 4 | -11/Junkyard | Discovered new exit (range 15) 12 | -11/Junkyard | Entered Materials 99 | -10/Materials | Discovered new exit (range 6) 103 | -10/Materials | Entered Mines 116 | -10/Mines | Assembled infested the area 121 | -10/Mines | Assisted by a Guerilla fighting off Assembled 136 | -10/Mines | Core integrity fell below 50% 140 | -10/Mines | Core integrity fell below 20% 142 | -10/Mines | Destroyed by as-47917 with Assembled Rifle Last Messages --------------- 00124_ as-42899 suffers critical hit (Destroy). 00124_ as-42899 knocked back. 00124_ T-07 Excavator is excavating. 00126_ HV Slug penetrates Wall. 00128_ as-45288 destroyed. 00128_ as-25778 destroyed. 00128_ HV Slug penetrates Earth. 00129_ Grenade Launcher destroyed. 00130_ HV Slug penetrates as-59961. 00130_ as-59961 suffers critical hit (Destroy). 00130_ as-59961 destroyed. 00131_ as-97434 destroyed. 00133_ NC-TFX(h) destroyed. 00133_ as-46988 destroyed. 00133_ as-10131 destroyed. 00135_ as-49921 destroyed. 00135_ Grenade Launcher destroyed. 00135_ Destroyed Grenade Launcher. 00135_ as-21936 destroyed. 00137_ The unstable cave ceiling collapses. Map ----- +----------------------------------------------------+ | | | | | | | | | | | | | | | | | | | | | | | | | | | ?????????????????????????????????????????????????? | | ?????????????????????????????????????????????????? | | ?????????????????????????????????????????????????? | | ????????????####?????????????????????????????????? | | ???????????## #####????????????????????????????? | | ????????# ## ##???????????????????????????? | | ???? ??## #???????????????????????????? | | ???? # ##??#####???????????????????? | | ??? #??# #???????????????????? | | ???? ##?# t#???????????????????? | | ???? % a a #### #???????????????????? | | ????? !% #???????????????????? | | ????? # @ #???????????????????? | | ????? #???????????????????? | | ??????### # #### # # #???????????????????? | | ???????????????#?## ### #???????????????????? | | ?????????????????# #??## ##???????????????????? | | ?????????????????# # ########????????????????????? | | ?????????????????#?# #????????????????????????? | | ???????????????????# ######## ?????????? | | ???????????????????### ?????????? | | ?????????????????????# ?????????? | | ?????????????????????# ########### #??????????? | | ?????????????????????# #?????????????????????????? | | ?????????????????????# ########### ##????????????? | | ?????????????????????# #????????????? | | ?????????????????????######## ##### #????????????? | | ???????????????????????????## #??????????????????? | | ??????????????????????????## ##?????????????????? | | ??????????????????????????# ##????????????????? | | ??????????????????????????# ##???????????????? | | ??????????????????????????## ### #?????? | | ???????????????????????????## #????? | | ????????????????????????????## ##?????????? | | ?????????????????????????????#### ##??????????? | | ????????????????????????????????? #???????????? | | ?????????????????????????????????? #??????????? | +----------------------------------------------------+ Best States ------------- Heat Dissipation 25 Energy Generation 5 Energy Capacity 100 Matter Stores 171 Matter Capacity 300 Sight Range 16 Terrain Scan Density 10 Evasion (%) 50 Item Schematics ----------------- None Robot Schematics ------------------ None Fabricated ------------ Nothing Alien Tech Used ----------------- None Achievements -------------- None Challenges ------------ None Game ------ Seed LongswordBiocellPrototype Manual? 0 Play Time 00:02:52 Cumulative 157.1 hours Start 2023.04.29 @ 17:08:18 End 2023.04.29 @ 17:10:16 Sessions 1 Manual Loads 0 Difficulty Rogue Special Mode None Game No. 475 Rogue 475 Adventurer 0 Explorer 0 Win Type - Total 7 Types 6/0/0/1/0/0/0/0/0 Lore% 66 Gallery% 72 Achievement% 62 Wizard Run 0 Options --------- ASCII 0 Keyboard 0 Movement Numpad Keybinds 0 Fullscreen 1 Font 16/SmallcapsGlow Map View 75x55 Tactical HUD 1 Map Filters NONE Filters NONE Steam 1 RUN: e3dc3fec-559c-4fe9-946d-e75ead8544fa